bitfinex/quotes_ETHUSD_20240730
["timestamp","ask_amount","ask_price","bid_price","bid_amount"]
[1722370346999,1.06378611,3256.3,3255.4,0.55]
[1722370347213,1.06378611,3256.2,3255.4,0.55]
[1722370347503,1.12732605,3256.1,3255.3,0.55]
[1722370347656,0.06353994,3256.1,3255.3,0.55]
[1722370347998,3.07011,3257.3,3255.3,1.3397321]
[1722370348207,1.85328059,3257.2,3255.7,3.733]
[1722370348408,1.06369393,3257.1,3255.8,0.55]
[1722370348700,1.12723387,3257.0,3255.8,0.55]
[1722370348926,1.06369393,3256.9,3255.8,0.55]
[1722370349133,1.06369393,3256.9,3255.9,2.333]
[1722370349134,0.06353994,3256.8,3255.9,2.333]
[1722370349335,1.06369393,3256.7,3256.0,0.61141758]
[1722370349483,0.1447234,3257.5,3256.3,3.733]
[1722370349687,1.06357174,3257.4,3256.4,0.55]
[1722370350046,1.12711168,3257.3,3256.4,0.55]
[1722370350185,1.12711168,3257.2,3256.4,0.55]
[1722370350385,1.06357174,3257.1,3256.4,0.55]
[1722370350635,0.06353994,3257.0,3256.4,0.55]
[1722370351138,0.06353994,3257.0,3255.9,2.333]
[1722370351432,1.06369433,3256.9,3256.0,0.55]
[1722370351730,0.06353994,3256.8,3256.0,0.55]
[1722370352099,0.06353994,3257.4,3256.0,0.55]
[1722370352302,1.06364023,3257.3,3256.0,0.55]
[1722370352506,1.12718017,3257.2,3256.0,0.55]
[1722370352722,0.06353994,3257.2,3256.0,0.55]
[1722370353103,0.1447234,3257.5,3256.1,0.06141896]
[1722370353290,1.06355197,3257.4,3256.2,0.55]
[1722370353632,0.1447234,3257.5,3256.3,3.79441683]
[1722370353835,0.1447234,3257.5,3256.4,0.98444168]
[1722370354359,0.06353994,3257.4,3256.4,0.98444168]
[1722370354485,0.1447234,3257.5,3256.4,0.98444168]
[1722370355356,0.1447234,3257.5,3256.5,2.32710691]
[1722370355635,0.1447234,3257.5,3256.6,0.55]
[1722370355794,0.1447234,3257.5,3256.6,4.48115486]
[1722370355993,0.1447234,3257.5,3256.7,0.06140442]
[1722370356188,0.1447234,3257.5,3256.8,0.55]
[1722370356436,0.1447234,3257.5,3256.6,4.48115486]
[1722370357398,0.1447234,3257.5,3256.6,3.55]
[1722370357822,0.1447234,3257.5,3256.9,3.733]
[1722370357998,0.1447234,3257.5,3257.0,0.55]
[1722370359270,0.1447234,3257.5,3257.4,3.48]
[1722370359414,0.1447234,3257.5,3257.4,4.03]
[1722370359923,0.1447234,3257.5,3257.4,4.433]
[1722370360133,0.1447234,3257.5,3257.4,9.9313]
[1722370360462,0.38422807,3259.2,3257.5,0.44840861]
[1722370360665,0.06353994,3259.2,3258.3,3.48]
[1722370360846,3.06839,3259.1,3257.9,3.48]
[1722370361045,0.06353994,3259.0,3258.0,0.55]
[1722370361209,0.32068263,3259.5,3258.0,0.55]
[1722370361409,3.06823,3259.2,3258.0,0.99840861]
[1722370361669,3.06806,3259.4,3258.0,0.99840861]
[1722370361670,0.32068263,3259.5,3258.0,0.55]
[1722370361815,3.38869263,3259.5,3258.0,0.55]
[1722370362015,0.32068263,3259.5,3258.3,3.48]
[1722370362324,0.32068263,3259.5,3258.4,0.55]
[1722370362778,0.4521957,3259.8,3258.4,0.55]
[1722370363069,0.4521957,3259.8,3258.7,3.48]
[1722370363211,0.4521957,3259.8,3258.4,0.55]
[1722370363212,3.06784,3259.7,3258.4,0.55]
[1722370363651,3.06789,3259.6,3258.4,0.55]
[1722370363961,3.0678,3259.7,3257.9,3.48]
[1722370364135,3.06816,3259.3,3257.9,3.48]
[1722370364317,3.06798,3259.5,3257.9,3.48]
[1722370364661,0.77283661,3259.8,3257.9,3.48]
[1722370364873,3.06821,3259.3,3257.9,3.48]
[1722370365015,0.77283661,3259.8,3257.9,3.48]
[1722370365215,3.0681,3259.4,3257.9,3.48]
[1722370365461,3.06788,3259.6,3257.9,3.48]
[1722370365615,3.84053661,3259.8,3258.3,3.48]
[1722370365819,0.4521957,3259.8,3258.7,3.48]
[1722370366260,0.4521957,3259.8,3258.8,0.55]
[1722370367774,1.06283507,3259.7,3258.8,0.55]
[1722370368071,0.4521957,3259.8,3258.8,0.55]
[1722370368217,1.06283772,3259.7,3258.8,0.55]
[1722370368557,0.4521957,3259.8,3258.8,0.55]
[1722370368929,1.06281734,3259.7,3258.8,0.55]
[1722370369131,1.06281734,3259.6,3258.8,3.55]
[1722370369320,0.4521957,3259.8,3258.8,3.55]
[1722370369518,0.4521957,3259.8,3257.3,6.31195]
[1722370369519,3.06832,3259.2,3257.9,5.9249]
[1722370369781,3.06842,3259.0,3257.9,2.4449]
[1722370370064,3.06873,3258.7,3257.5,3.48]
[1722370370261,3.06866,3258.8,3257.5,3.48]
[1722370370491,3.06866,3258.8,3257.2,2.4449]
[1722370370492,3.06904,3258.4,3257.2,2.4449]
[1722370370633,1.063153,3258.3,3257.2,2.4449]
[1722370370832,3.06908,3258.4,3257.2,2.4449]
[1722370371075,1.063153,3258.3,3257.2,2.4449]
[1722370371286,3.06918,3258.2,3257.2,2.4449]
[1722370371572,1.063153,3258.1,3257.2,2.4449]
[1722370371794,3.06901,3258.4,3257.2,2.4449]
[1722370371933,4.13245162,3258.3,3257.2,2.4449]
[1722370372130,1.06337162,3258.2,3257.2,2.4449]
[1722370372345,3.06934,3258.1,3257.1,3.48]
[1722370372565,3.06957,3257.8,3256.7,5.7511]
[1722370372750,1.06337162,3257.7,3256.8,0.06140866]
[1722370372971,3.06895,3258.5,3257.1,3.48]
[1722370373150,1.06330787,3258.4,3257.1,3.48]
[1722370373350,1.06330787,3258.3,3257.1,3.48]
[1722370373586,1.06330787,3258.2,3257.1,3.48]
[1722370373764,1.06330787,3258.1,3257.1,3.48]
[1722370373969,2.404,3258.2,3256.2,2.2711]
[1722370374154,2.404,3258.2,3256.1,3.48]
[1722370374155,3.07009,3257.3,3256.1,3.48]
[1722370374374,3.07028,3257.1,3255.6,2.2711]
[1722370374546,3.07104,3256.3,3254.9,2.2711]
[1722370374854,3.0708,3256.5,3254.9,5.97821]
[1722370375038,1.06409812,3256.4,3254.9,5.97821]
[1722370375238,3.0706,3256.7,3255.3,3.48]
[1722370375239,1.06409812,3256.3,3255.3,3.48]
[1722370375589,1.06409812,3256.2,3255.4,0.348]
[1722370375894,0.4521957,3256.8,3255.7,3.48]
[1722370376078,1.06382047,3256.7,3255.8,3.0]
[1722370376235,2.404,3257.8,3255.8,3.06142603]
[1722370376236,1.06382047,3256.6,3255.8,3.06142603]
[1722370376583,5.47357,3257.8,3256.1,3.48]
[1722370376881,7.13335823,3257.7,3256.2,0.55]
[1722370377089,7.13335823,3257.7,3255.8,3.0]
[1722370377090,1.06363823,3257.6,3255.8,3.0]
[1722370377304,0.4521957,3256.9,3254.9,3.48]
[1722370377444,4.13419823,3256.8,3255.0,0.348]
[1722370377642,1.06363823,3256.7,3255.0,0.348]
[1722370378087,1.06391548,3256.6,3255.3,3.48]
[1722370378238,1.06391548,3256.5,3255.7,3.48]
[1722370378440,3.0,3257.3,3256.1,3.48]
[1722370378697,3.06984,3257.5,3256.1,3.48]
[1722370378698,1.06364656,3257.2,3256.1,3.48]
[1722370378871,1.06364656,3257.1,3256.2,0.55]
[1722370379210,1.06364656,3257.0,3256.2,0.55]
[1722370379370,1.06364656,3257.3,3256.2,0.55]
[1722370379556,1.06364656,3257.2,3256.2,0.55]
[1722370379893,1.06364656,3257.1,3256.2,0.55]
[1722370380097,1.06364656,3257.5,3256.2,0.55]
[1722370380612,1.06364656,3257.5,3256.2,2.8211]
[1722370380757,0.4521957,3257.9,3256.3,3.0]
[1722370381113,0.32085829,3257.4,3256.3,3.0]
[1722370381298,1.06360991,3257.3,3255.8,3.0]
[1722370381493,1.06360991,3257.5,3255.8,3.0]
[1722370381700,1.06360991,3257.6,3255.9,0.87511]
[1722370381880,3.06966,3257.7,3255.9,0.87511]
[1722370381881,1.06360991,3257.5,3255.9,0.87511]
[1722370382206,3.07046,3256.9,3255.7,2.2711]
[1722370382420,1.06360991,3257.4,3255.0,2.6191]
[1722370382421,3.07088,3256.4,3255.0,2.6191]
[1722370383926,1.063981,3255.9,3254.5,4.05934]
[1722370384081,4.135321,3255.9,3254.5,4.05934]
[1722370384283,3.07159,3255.7,3254.4,2.3134]
[1722370384498,1.063981,3255.6,3254.4,2.3134]
[1722370384677,4.135611,3255.6,3254.4,2.3134]
[1722370385022,3.07138,3255.9,3253.8,2.4323]
[1722370385023,3.07203,3255.2,3253.8,2.4323]
[1722370385317,1.063981,3255.1,3253.9,0.06145845]
[1722370385516,1.063981,3255.7,3254.1,3.48]
[1722370385660,1.0642751,3255.6,3254.5,3.48]
[1722370385860,0.4521957,3255.8,3254.9,5.7825]
[1722370386103,3.0,3256.4,3254.9,5.7825]
[1722370386314,3.0,3256.4,3254.9,6.36075]
[1722370386518,1.06397499,3256.3,3254.9,6.36075]
[1722370386697,1.06397499,3256.2,3254.9,6.36075]
[1722370386864,3.0,3256.4,3255.0,0.61143887]
[1722370386865,1.06397499,3256.3,3255.0,0.61143887]
[1722370387061,0.4521957,3256.7,3255.3,3.48]
[1722370387408,0.4521957,3256.7,3255.4,3.61142879]
[1722370387815,5.56595,3257.6,3255.7,3.48]
[1722370388124,4.13359321,3257.5,3255.8,6.10772159]
[1722370388436,1.06368321,3257.4,3255.8,7.06649375]
[1722370388723,4.13346321,3257.6,3255.8,7.00507216]
[1722370388926,4.13352321,3257.5,3255.8,7.00507216]
[1722370389217,4.13366321,3257.4,3255.8,7.00507216]
[1722370389429,1.06373461,3257.3,3255.8,7.00507216]
[1722370389576,1.06373461,3257.2,3255.8,7.00507216]
[1722370389772,1.06373461,3257.1,3255.8,6.0463]
[1722370390131,0.7730642,3257.8,3255.8,6.0463]
[1722370390132,1.06373461,3257.0,3255.8,6.0463]
[1722370390275,1.06373461,3256.9,3255.8,6.0463]
[1722370390476,3.0701,3257.3,3255.8,6.0463]
[1722370390807,1.06366716,3257.2,3255.8,6.0463]
[1722370390989,1.06366716,3257.1,3255.8,6.0463]
[1722370391528,1.06366716,3257.0,3255.8,6.0463]
[1722370391871,1.06366716,3256.9,3255.8,6.65093]
[1722370392221,3.4521957,3257.8,3255.8,6.65093]
[1722370392222,0.4521957,3257.8,3256.1,3.48]
[1722370392531,0.32086104,3257.6,3256.5,3.48]
[1722370392729,0.4521957,3257.8,3256.6,0.55]
[1722370392730,1.06355531,3257.5,3256.6,0.55]
[1722370392877,0.4521957,3257.8,3256.6,0.953]
[1722370393143,1.06341641,3257.7,3256.7,2.4681]
[1722370393354,3.06899,3258.4,3256.8,0.55]
[1722370393548,1.06339358,3258.3,3256.8,0.55]
[1722370393751,0.4521957,3258.8,3256.8,3.61140572]
[1722370393752,1.06339358,3258.2,3256.8,3.61140572]
[1722370393966,1.06339358,3258.1,3256.9,0.60795057]
[1722370394181,3.5208557,3258.8,3257.0,0.55]
[1722370394182,1.06339358,3258.0,3257.0,0.55]
[1722370394395,1.06327589,3257.9,3257.1,0.06139761]
[1722370394551,3.8415677,3258.8,3257.2,0.55]
[1722370394766,1.0632405,3258.7,3257.2,0.55]
[1722370395081,1.0632405,3258.6,3257.2,0.55]
[1722370395379,1.0632405,3258.5,3257.2,0.55]
[1722370395685,3.0688,3258.6,3257.1,0.55]
[1722370395852,3.0688,3258.6,3256.8,3.0]
[1722370395853,3.06923,3258.2,3256.9,0.55]
[1722370396057,1.06326881,3258.1,3256.9,0.55]
[1722370396365,1.06326881,3258.0,3256.9,1.21321562]
[1722370396549,1.06326881,3258.6,3256.9,0.55]
[1722370396738,1.06326881,3258.6,3257.0,0.06139955]
[1722370396942,3.06884,3258.6,3257.1,0.55]
[1722370397161,1.06326881,3258.5,3256.9,0.55]
[1722370397360,4.13217881,3258.5,3256.9,0.55]
[1722370397587,4.13225881,3258.4,3256.9,0.55]
[1722370397887,1.06326881,3258.3,3256.9,0.55]
[1722370398093,3.0692,3258.2,3256.7,2.4681]
[1722370398240,1.06326881,3258.1,3256.7,2.4681]
[1722370398893,3.0695,3257.9,3256.7,2.4681]
[1722370399053,3.06991,3257.5,3255.6,2.4681]
[1722370399257,1.06326881,3257.4,3255.7,0.61921]
[1722370399468,3.0,3258.3,3255.7,0.61921]
[1722370399469,7.13281881,3257.8,3255.7,0.61921]
[1722370399661,4.13291881,3257.7,3255.8,0.308731]
[1722370400007,1.06326881,3257.6,3255.9,0.06141517]
[1722370400147,1.06326881,3257.7,3255.9,0.06141517]
[1722370400355,1.06326881,3257.7,3256.0,0.55]
[1722370400552,4.13282881,3257.8,3256.1,0.0614144]
[1722370400766,1.06326881,3257.7,3256.2,0.55]
[1722370400961,1.06326881,3257.8,3256.2,0.55]
[1722370401163,3.06999,3257.4,3255.8,0.308731]
[1722370401365,3.06999,3257.4,3255.0,35.0]
[1722370401366,3.07018,3257.2,3255.0,35.0]
[1722370401567,0.4521957,3257.7,3254.4,4.9228]
[1722370401568,3.07068,3256.7,3254.4,0.3078]
[1722370401797,3.07068,3256.7,3254.4,0.44142328]
[1722370402102,1.06395576,3256.6,3254.4,35.0]
[1722370402253,3.07105,3256.3,3254.4,2.4681]
[1722370402567,1.06395576,3256.2,3254.5,0.61921]
[1722370402893,3.07125,3256.0,3254.4,2.4681]
[1722370403076,1.06395576,3255.9,3254.4,2.4681]
[1722370403285,1.06395576,3255.8,3254.4,2.4681]
[1722370403591,1.06395576,3255.7,3254.4,2.4681]
[1722370403800,1.06395576,3256.3,3254.4,2.4681]
[1722370404102,1.06395576,3256.2,3254.4,3.08731]
[1722370404434,3.0713,3256.0,3254.5,3.0]
[1722370404592,1.06395576,3255.9,3254.5,3.0]
[1722370404919,3.07115,3256.1,3254.4,2.4681]
[1722370405075,1.06410608,3255.8,3254.4,2.4681]
[1722370405291,1.06410608,3255.7,3254.4,2.4681]
[1722370405474,3.07159,3255.7,3254.4,2.4681]
[1722370405676,3.07183,3255.4,3254.4,2.4681]
[1722370405913,1.06410608,3255.3,3254.4,2.4681]
[1722370406113,1.06410608,3255.6,3254.4,2.4681]
[1722370406275,4.13573608,3255.6,3254.4,2.4681]
[1722370406475,1.06410608,3255.5,3254.4,2.4681]
[1722370406934,3.07201,3255.2,3253.2,2.4681]
[1722370407225,3.0,3255.5,3253.2,3.08731]
[1722370407226,1.06410608,3255.1,3253.2,3.08731]
[1722370407408,4.13602608,3255.3,3253.2,3.08731]
[1722370407617,1.06410608,3255.2,3253.2,3.08731]
[1722370407778,4.13612608,3255.2,3253.3,0.681131]
[1722370408120,4.13652379,3255.1,3253.3,0.681131]
[1722370408278,4.13668379,3255.0,3253.3,0.681131]
[1722370408480,3.0724,3254.8,3253.2,2.4681]
[1722370408674,3.07224,3255.0,3253.2,2.4681]
[1722370408675,1.06441379,3254.7,3253.2,2.4681]
[1722370408927,1.06441379,3254.9,3253.2,2.4681]
[1722370409218,1.06441379,3254.8,3253.2,2.4681]
[1722370409430,4.13661379,3255.0,3253.2,2.71491]
[1722370409734,4.13671379,3254.9,3253.2,2.71491]
[1722370409941,1.06441379,3254.8,3253.3,3.55]
[1722370410083,1.06441379,3255.0,3253.3,3.55]
[1722370410581,1.06441379,3255.0,3253.4,0.06147018]
[1722370410782,1.06441379,3255.0,3253.5,0.55]
[1722370411039,3.07208,3255.2,3253.5,0.55]
[1722370411192,3.07208,3255.2,3253.4,0.55]
[1722370411193,3.0722,3255.0,3253.4,0.55]
[1722370411393,1.06441379,3254.9,3253.4,0.55]
[1722370411695,3.07249,3254.7,3253.4,0.55]
[1722370411878,1.06441379,3254.6,3253.3,0.55]
[1722370412497,1.06441379,3254.8,3253.3,0.55]
[1722370412695,4.13681379,3254.8,3253.3,0.55]
[1722370412926,4.13690379,3254.7,3253.3,0.55]
[1722370413131,4.06441379,3254.6,3253.2,2.4681]
[1722370413337,3.0728,3254.4,3253.2,2.4681]
[1722370413479,3.07297,3254.2,3253.2,2.4681]
[1722370413688,1.06441379,3254.1,3253.2,2.4681]
[1722370414237,3.5247057,3254.7,3252.3,2.3973]
[1722370414384,3.0734,3253.8,3252.3,2.3973]
[1722370414725,3.07348,3253.7,3252.3,2.3973]
[1722370414937,1.06490828,3253.6,3252.3,5.8883]
[1722370415097,7.13806828,3254.0,3252.3,6.47713]
[1722370415284,4.13813828,3253.9,3252.3,6.47713]
[1722370415491,1.06490828,3253.8,3252.3,6.47713]
[1722370415684,1.06490828,3253.7,3252.4,3.0]
[1722370415914,1.06490828,3253.6,3252.4,3.0]
[1722370416146,3.07362,3253.5,3252.3,2.3973]
[1722370416333,4.13859881,3253.4,3252.3,2.3973]
[1722370416537,1.06488881,3253.3,3252.3,2.3973]
[1722370416737,0.4521957,3253.7,3252.3,2.3973]
[1722370416935,1.06485818,3253.6,3252.3,2.3973]
[1722370417138,0.4521957,3253.7,3252.3,6.12803]
[1722370417359,0.4521957,3253.7,3252.4,0.06148703]
[1722370417811,0.32138064,3254.1,3252.7,3.491]
[1722370418011,3.07269,3254.5,3252.8,3.0]
[1722370418211,1.06472761,3254.4,3252.8,3.61148034]
[1722370418418,1.06472761,3254.3,3252.8,4.26024803]
[1722370418765,1.06470815,3254.2,3252.8,4.26024803]
[1722370418972,0.32133338,3254.4,3252.8,4.32172741]
[1722370419267,1.06467909,3254.3,3252.8,4.26024803]
[1722370419425,3.07295,3254.2,3252.8,3.55]
[1722370419625,1.06473083,3254.1,3252.8,3.55]
[1722370419865,1.06473083,3254.1,3252.9,3.0]
[1722370420064,3.07287,3254.3,3252.8,0.55]
[1722370420281,1.06471194,3254.2,3252.7,3.491]
[1722370420560,0.32133338,3254.4,3252.7,3.491]
[1722370420561,0.32133338,3254.4,3252.8,3.55]
[1722370421061,1.06469291,3254.3,3252.8,3.55]
[1722370421221,3.32133338,3254.4,3252.8,3.55]
[1722370421416,3.32133338,3254.4,3252.9,0.06147713]
[1722370421417,1.06468945,3254.3,3252.9,0.06147713]
[1722370421621,0.32133338,3254.4,3253.1,3.491]
[1722370421868,0.32133338,3254.4,3253.2,3.55]
[1722370422270,0.4521957,3254.7,3253.2,3.55]
[1722370423423,0.4521957,3254.7,3253.2,4.2541]
[1722370423922,1.0645433,3254.6,3253.2,3.55]
[1722370424128,3.07293,3254.3,3253.0,3.0]
[1722370424326,0.4521957,3254.7,3252.9,2.2909]
[1722370424327,6.14604,3254.2,3252.9,2.2909]
[1722370424654,0.4521957,3254.7,3252.9,2.2909]
[1722370424655,1.06468379,3254.1,3252.9,2.2909]
[1722370424855,0.4521957,3254.7,3252.9,2.2909]
[1722370424856,3.07261,3254.6,3252.9,2.2909]
[1722370425056,3.07297,3254.2,3252.9,2.2909]
[1722370425393,1.06467572,3254.1,3252.9,2.2909]
[1722370425684,3.07286,3254.3,3252.9,2.2909]
[1722370425685,1.06467572,3254.0,3252.9,2.2909]
[1722370425985,3.07286,3254.3,3252.9,2.2909]
[1722370425986,1.06467572,3253.9,3252.9,2.2909]
[1722370426188,1.06470763,3254.2,3252.9,2.2909]
[1722370426345,6.07271,3254.5,3252.4,3.0]
[1722370426346,1.06468467,3254.1,3252.4,3.0]
[1722370426549,0.4521957,3253.7,3252.0,2.2908]
[1722370426784,1.06468467,3253.6,3252.0,2.2908]
[1722370427099,1.06503844,3253.5,3252.0,2.2908]
[1722370427248,1.06499061,3253.4,3252.0,2.2908]
[1722370427446,1.06499061,3253.3,3252.0,2.51988]
[1722370427704,1.06499061,3253.2,3252.0,2.51988]
[1722370427848,1.06499061,3253.1,3252.0,2.2908]
[1722370428043,3.07373,3253.4,3252.0,2.2908]
[1722370428251,1.06499061,3253.3,3252.0,2.2908]
[1722370428495,1.06499061,3253.2,3252.0,2.2908]
[1722370428676,1.06499061,3253.1,3252.2,3.491]
[1722370428991,3.4521957,3253.7,3252.4,2.2908]
[1722370429147,1.06482044,3253.6,3252.4,2.2908]
[1722370429348,3.4521957,3253.7,3252.6,3.491]
[1722370429349,1.06482044,3253.5,3252.6,3.491]
[1722370429591,1.06467899,3253.4,3252.7,0.55]
[1722370429895,0.4521957,3253.7,3252.7,0.55]
[1722370429896,1.06467899,3253.3,3252.7,0.55]
[1722370430094,1.06467899,3253.6,3252.7,0.55]
[1722370430263,0.4521957,3253.7,3252.7,0.55]
[1722370430264,1.0647648,3253.5,3252.7,0.55]
[1722370430466,1.0647648,3253.4,3251.8,5.7818]
[1722370430644,1.0647648,3253.6,3251.9,3.55]
[1722370430994,3.07371,3253.4,3251.9,0.55]
[1722370431221,1.0647648,3253.3,3251.9,0.55]
[1722370431488,1.0647648,3253.3,3251.8,5.7818]
[1722370431686,4.1384448,3253.5,3251.8,5.7818]
[1722370431993,3.07357,3253.6,3251.8,5.7818]
[1722370431994,1.0647648,3253.4,3251.8,5.7818]
[1722370432174,1.0647648,3253.5,3251.9,3.57818]
[1722370432364,1.0647648,3253.4,3251.9,3.57818]
[1722370432686,3.5256657,3253.7,3251.9,3.57818]
[1722370432687,1.0647648,3253.3,3251.9,3.57818]
[1722370432998,1.0647648,3253.2,3252.2,3.491]
[1722370433288,1.06480661,3253.1,3252.2,3.491]
[1722370433495,0.4521957,3253.7,3252.2,3.491]
[1722370433496,1.06480661,3253.0,3252.2,3.491]
[1722370433698,1.06480661,3253.6,3252.2,3.491]
[1722370433852,1.06480661,3253.5,3252.2,3.491]
[1722370434053,1.06480661,3253.6,3252.2,3.491]
[1722370434278,1.06480661,3253.5,3252.2,3.491]
[1722370434599,1.06480661,3253.4,3252.2,3.491]
[1722370434812,1.06480661,3253.5,3252.6,3.491]
[1722370434962,1.06480661,3253.4,3252.7,0.06147967]
[1722370435156,0.4521957,3253.7,3252.7,0.35524797]
[1722370435157,1.06480661,3253.3,3252.7,0.35524797]
[1722370435389,1.06480661,3253.2,3252.6,3.491]
[1722370435595,1.06480661,3253.1,3252.3,5.4424]
[1722370435757,1.06480661,3253.0,3252.3,5.4424]
[1722370435954,4.13838661,3253.6,3252.3,2.4424]
[1722370436286,1.06480661,3253.5,3252.3,2.4424]
[1722370436485,3.07357,3253.6,3252.3,2.4424]
[1722370436670,1.06505851,3253.4,3252.3,2.4424]
[1722370436869,1.06505851,3253.3,3252.3,2.4424]
[1722370437074,1.06505851,3253.2,3252.3,2.4424]
[1722370437278,1.06505851,3253.1,3252.3,2.4424]
[1722370437497,1.06505851,3253.0,3252.3,2.4424]
[1722370437701,1.06505851,3252.9,3252.3,2.4424]
[1722370437869,1.06505851,3252.8,3252.3,2.4424]
[1722370438064,1.06505851,3252.7,3252.3,2.4424]
[1722370438438,1.06505851,3252.6,3252.3,2.4424]
[1722370438707,1.06505851,3252.5,3252.3,2.4424]
[1722370438931,1.06505851,3252.4,3252.3,2.4424]
[1722370439689,3.4521957,3253.7,3252.3,2.4424]
[1722370440027,11.52847425,3253.6,3252.3,2.4424]
[1722370440318,3.07371,3253.4,3252.3,2.4424]
[1722370440532,1.06495192,3253.5,3251.7,2.2832]
[1722370440533,3.07413,3253.0,3251.7,2.2832]
[1722370440677,3.07413,3253.0,3251.7,5.2832]
[1722370440678,1.06495192,3252.9,3251.7,5.2832]
[1722370440873,1.06495192,3252.9,3251.7,2.2832]
[1722370441321,1.06495192,3252.9,3251.8,3.491]
[1722370441481,1.06495192,3253.6,3252.2,3.491]
[1722370441674,1.06495534,3253.5,3252.4,2.3093]
[1722370441904,1.06483151,3253.4,3252.4,2.3093]
[1722370442224,0.4521957,3253.7,3252.4,2.3093]
[1722370442225,1.06483151,3253.3,3252.5,0.06148834]
[1722370442426,0.4521957,3253.7,3252.6,3.491]
[1722370442427,1.06483151,3253.2,3252.6,3.491]
[1722370442584,0.4521957,3253.7,3252.6,3.491]
[1722370442585,1.06483151,3253.1,3252.6,3.491]
[1722370442785,1.06483151,3253.0,3252.7,0.06148317]
[1722370443035,1.06483151,3252.9,3252.7,0.06148317]
[1722370443331,1.06483151,3252.8,3252.7,0.06148317]
[1722370443530,1.06483151,3252.8,3252.7,0.55]
[1722370443737,1.06483151,3252.8,3252.7,3.34936599]
[1722370444033,0.32152595,3254.7,3252.7,6.41084175]
[1722370444189,4.13712811,3254.6,3253.1,3.491]
[1722370444390,1.06455811,3254.5,3253.2,0.0614714]
[1722370444633,1.06455811,3254.7,3253.2,0.0614714]
[1722370444789,1.06455811,3254.6,3253.2,0.0614714]
[1722370445118,1.06455811,3254.6,3252.7,6.34936599]
[1722370445119,1.06477773,3254.5,3252.7,9.3715]
[1722370445326,1.06477773,3254.4,3252.8,0.55]
[1722370445634,1.06477773,3254.3,3252.8,0.55]
[1722370445801,1.06477773,3254.2,3252.8,0.55]
[1722370445984,1.06477773,3254.1,3252.8,0.55]
[1722370446188,1.06477773,3254.0,3252.8,0.55]
[1722370446439,1.06477773,3253.9,3252.7,8.8215]
[1722370446658,1.06477773,3253.8,3252.8,0.61148103]
[1722370446988,1.06477773,3253.7,3253.1,3.491]
[1722370447235,1.06477773,3253.6,3253.5,5.9081]
[1722370447734,0.4521957,3255.1,3253.5,9.4581]
[1722370448033,3.07154,3255.7,3253.5,9.4581]
[1722370448034,1.06427517,3255.0,3254.0,3.491]
[1722370448187,1.06434838,3254.9,3254.0,3.491]
[1722370448386,3.07137,3255.9,3254.0,3.491]
[1722370448387,1.06434838,3254.8,3254.1,0.55]
[1722370448693,1.06434838,3254.7,3254.5,2.2927]
[1722370448897,1.231713,3256.2,3254.6,4.61937]
[1722370449193,0.32057793,3257.4,3255.2,3.491]
[1722370449194,1.06408214,3256.1,3255.2,3.491]
[1722370449392,1.06408214,3256.0,3255.3,2.4148]
[1722370449635,1.06408214,3255.9,3255.3,2.4148]
[1722370449862,1.06408214,3255.8,3255.3,2.4148]
[1722370450030,1.06408214,3255.7,3255.4,0.06143231]
[1722370450233,1.06408214,3255.6,3255.4,3.61143231]
[1722370450468,0.4521957,3256.7,3255.4,3.61143231]
[1722370450729,1.06379183,3256.6,3255.4,3.61143231]
[1722370451060,1.06379183,3256.5,3255.4,3.61143231]
[1722370451230,1.06379183,3256.5,3255.4,4.56315554]
[1722370451430,3.39109949,3257.4,3255.4,4.50172323]
[1722370451431,1.06379183,3256.4,3255.4,4.50172323]
[1722370451779,3.07019,3257.2,3255.4,3.55]
[1722370451780,1.06379183,3256.3,3255.4,3.55]
[1722370451984,1.06379183,3256.2,3255.4,3.55]
[1722370452189,1.06379183,3257.0,3255.4,3.55]
[1722370452487,1.85161545,3256.9,3255.4,3.55]
[1722370452776,1.06379183,3256.8,3255.4,4.14648]
[1722370452973,1.06379183,3256.8,3255.5,2.4641169]
[1722370453181,1.06379183,3256.7,3255.7,2.3834]
[1722370453345,1.06366438,3256.6,3255.8,0.55]
[1722370453699,0.4521957,3257.4,3255.9,0.29334]
[1722370453989,1.06367959,3257.3,3256.0,0.55]
[1722370454189,3.07021,3257.1,3256.0,0.55]
[1722370454350,3.07043,3256.9,3255.9,0.55]
[1722370454679,1.06378258,3256.8,3255.8,3.0]
[1722370454967,1.06378258,3256.7,3255.7,2.3834]
[1722370455128,3.07046,3256.9,3255.8,0.55]
[1722370455331,1.06378147,3256.8,3255.7,2.3834]
[1722370455559,7.13434147,3256.8,3255.7,2.3834]
[1722370455778,1.06378147,3256.7,3255.7,2.3834]
[1722370456368,1.06378147,3256.6,3255.7,2.3834]
[1722370456575,1.06378147,3256.8,3255.7,2.3834]
[1722370456775,1.06378147,3256.7,3255.7,2.3834]
[1722370456948,1.06378147,3256.9,3255.7,2.3834]
[1722370457538,3.0,3257.0,3255.7,2.3834]
[1722370457749,3.07015,3257.2,3255.7,2.3834]
[1722370457750,1.06392562,3256.8,3255.7,2.3834]
[1722370457982,1.06392562,3256.9,3255.7,2.3834]
[1722370458155,1.06392562,3256.8,3255.7,2.3834]
[1722370458351,1.06392562,3256.7,3255.7,2.3834]
[1722370458536,3.4521957,3257.4,3255.8,0.6114262]
[1722370458737,1.06375807,3257.3,3256.2,2.4642]
[1722370459093,3.06912,3258.3,3256.3,0.55]
[1722370459232,1.06348496,3258.2,3256.3,0.55]
[1722370459437,1.06348496,3258.1,3256.3,3.55]
[1722370459652,3.06918,3258.2,3256.3,4.82412]
[1722370459653,1.06348496,3258.0,3256.3,4.82412]
[1722370459851,3.06957,3257.8,3256.3,4.82412]
[1722370460080,1.06348496,3257.7,3256.4,0.06140643]
[1722370460291,7.13276496,3258.1,3256.5,1.03855264]